[Event "Vastgota Open 2022"]
[Site "Skara stadshotell, Jarnvagsgatan 5, Skara, Sweden"]
[Date "2022.10.29"]
[Round "2.7"]
[White "Wengholm, Anders"]
[Black "Cederqvist, Niclas"]
[Result "0-1"]
[TimeControl "30 minutes + 10 seconds per move from move one."]
[WhiteFideId "1704818"]
[BlackFideId "1702076"]
[WhiteElo "2179"]
[BlackElo "1883"]

1. d4 {[%clk 00:29:58]} {[%emt 00:00:21]} d5 {[%clk 00:30:05]} {[%emt
00:00:14]} 2. c4 {[%clk 00:29:15]} {[%emt 00:02:40]} c6 {[%clk 00:29:59]} 3.
Nf3 {[%clk 00:29:19]} Nf6 {[%clk 00:30:00]} 4. Nc3 {[%clk 00:29:00]} Bf5 {[%clk
00:29:06]} {[%emt 00:00:18]} 5. cxd5 {[%clk 00:29:04]} {[%emt 00:00:08]} cxd5
{[%clk 00:29:07]} {[%emt 00:00:08]} 6. Qb3 {[%clk 00:29:01]} {[%emt 00:00:13]}
b6 {[%clk 00:25:39]} {[%emt 00:03:38]} 7. Bg5 {[%clk 00:27:55]} {[%emt
00:01:17]} e6 {[%clk 00:23:48]} {[%emt 00:01:59]} 8. e4 {[%clk 00:23:04]}
{[%emt 00:05:01]} dxe4 {[%clk 00:22:52]} {[%emt 00:01:06]} 9. Bb5+ {[%clk
00:23:08]} {[%emt 00:00:05]} Ke7 {[%clk 00:22:23]} {[%emt 00:00:39]} 10. Ne5
{[%clk 00:22:32]} {[%emt 00:00:47]} a6 {[%clk 00:19:23]} {[%emt 00:03:10]} 11.
Bc6 {[%clk 00:15:28]} {[%emt 00:07:14]} Ra7 {[%clk 00:18:19]} {[%emt 00:01:14]}
12. d5 {[%clk 00:14:40]} {[%emt 00:00:59]} h6 {[%clk 00:12:02]} {[%emt
00:06:27]} 13. d6+ {[%clk 00:05:13]} {[%emt 00:09:37]} Qxd6 {[%clk 00:10:55]}
{[%emt 00:01:16]} 14. Qxb6 {[%clk 00:04:25]} {[%emt 00:00:59]} Qc7 {[%clk
00:07:41]} {[%emt 00:03:23]} 15. Be3 {[%clk 00:03:48]} {[%emt 00:00:47]} Qxb6
{[%clk 00:07:28]} {[%emt 00:00:23]} 16. Bxb6 {[%clk 00:03:56]} {[%emt
00:00:02]} Rd7 {[%clk 00:07:36]} {[%emt 00:00:03]} 17. Bc5+ {[%clk 00:01:17]}
{[%emt 00:02:48]} Kd8 {[%clk 00:06:19]} {[%emt 00:01:27]} 18. Bxf8 {[%clk
00:01:25]} {[%emt 00:00:02]} Rxf8 {[%clk 00:06:16]} {[%emt 00:00:13]} 19. Nxd7
{[%clk 00:01:21]} {[%emt 00:00:15]} Nfxd7 {[%clk 00:06:18]} {[%emt 00:00:07]}
20. Bxe4 {[%clk 00:01:23]} {[%emt 00:00:08]} Bxe4 {[%clk 00:06:19]} {[%emt
00:00:09]} 21. Nxe4 {[%clk 00:01:32]} {[%emt 00:00:01]} Ke7 {[%clk 00:06:21]}
{[%emt 00:00:08]} 22. Rc1 {[%clk 00:01:35]} {[%emt 00:00:07]} f5 {[%clk
00:06:18]} {[%emt 00:00:13]} 23. Nd2 {[%clk 00:01:31]} {[%emt 00:00:15]} Ne5
{[%clk 00:06:18]} {[%emt 00:00:09]} 24. Ke2 {[%clk 00:01:29]} {[%emt 00:00:12]}
Rd8 {[%clk 00:06:24]} {[%emt 00:00:04]} 25. Rc3 {[%clk 00:00:40]} {[%emt
00:00:59]} Nbc6 {[%clk 00:06:25]} {[%emt 00:00:09]} 26. Nb3 {[%clk 00:00:39]}
{[%emt 00:00:11]} Nb4 {[%clk 00:06:28]} {[%emt 00:00:07]} 27. Rd1 {[%clk
00:00:20]} {[%emt 00:00:29]} Nd5 {[%clk 00:06:16]} {[%emt 00:00:22]} 28. Rcc1
{[%clk 00:00:21]} {[%emt 00:00:09]} Rb8 {[%clk 00:06:19]} {[%emt 00:00:08]} 29.
g3 {[%clk 00:00:20]} {[%emt 00:00:10]} g5 {[%clk 00:06:27]} {[%emt 00:00:02]}
30. Rd2 {[%clk 00:00:28]} {[%emt 00:00:02]} f4 {[%clk 00:06:31]} {[%emt
00:00:06]} 31. Nd4 {[%clk 00:00:31]} {[%emt 00:00:07]} Kf6 {[%clk 00:06:33]}
{[%emt 00:00:08]} 32. a3 {[%clk 00:00:22]} {[%emt 00:00:21]} a5 {[%clk
00:06:30]} {[%emt 00:00:13]} 33. Nc6 {[%clk 00:00:16]} {[%emt 00:00:15]} f3+
{[%clk 00:06:29]} {[%emt 00:00:11]} 34. Kd1 {[%clk 00:00:18]} {[%emt 00:00:09]}
Rb6 {[%clk 00:06:08]} {[%emt 00:00:30]} 35. Nxe5 {[%clk 00:00:25]} {[%emt
00:00:03]} Kxe5 {[%clk 00:06:17]} 36. Rc4 {[%clk 00:00:32]} {[%emt 00:00:03]}
h5 {[%clk 00:06:19]} {[%emt 00:00:08]} 37. Rc5 {[%clk 00:00:27]} {[%emt
00:00:15]} Ra6 {[%clk 00:06:24]} {[%emt 00:00:05]} 38. Kc2 {[%clk 00:00:13]}
{[%emt 00:00:24]} Ke4 {[%clk 00:06:06]} {[%emt 00:00:29]} 39. Rc4+ {[%clk
00:00:19]} {[%emt 00:00:04]} Ke5 {[%clk 00:06:15]} 40. Rd1 {[%clk 00:00:25]}
{[%emt 00:00:02]} Nf6 {[%clk 00:06:20]} {[%emt 00:00:06]} 41. Rc5+ {[%clk
00:00:33]} {[%emt 00:00:01]} Nd5 {[%clk 00:06:29]} 42. Rc4 {[%clk 00:00:38]}
{[%emt 00:00:05]} Kf5 {[%clk 00:06:30]} {[%emt 00:00:09]} 43. h3 {[%clk
00:00:45]} {[%emt 00:00:03]} Nf6 {[%clk 00:06:37]} {[%emt 00:00:04]} 44. Re1
{[%clk 00:00:47]} {[%emt 00:00:08]} e5 {[%clk 00:06:41]} {[%emt 00:00:06]} 45.
Rc5 {[%clk 00:00:53]} {[%emt 00:00:03]} Ne4 {[%clk 00:06:49]} {[%emt 00:00:02]}
46. Rc8 {[%clk 00:00:52]} {[%emt 00:00:11]} Nxf2 {[%clk 00:06:54]} {[%emt
00:00:05]} 47. Rf8+ {[%clk 00:01:01]} Rf6 {[%clk 00:07:01]} {[%emt 00:00:03]}
48. Rxf6+ {[%clk 00:01:09]} {[%emt 00:00:02]} Kxf6 {[%clk 00:07:11]} 49. b4
{[%clk 00:01:16]} {[%emt 00:00:04]} axb4 {[%clk 00:07:13]} {[%emt 00:00:08]} 50.
axb4 {[%clk 00:01:25]} e4 {[%clk 00:07:21]} {[%emt 00:00:01]} 51. b5 {[%emt
00:00:03]} Ke6 52. Kc3 {[%clk 00:01:36]} {[%emt 00:00:05]} Kd6 {[%clk
00:07:40]} 53. Kd4 {[%clk 00:01:44]} {[%emt 00:00:03]} g4 {[%clk 00:07:45]}
{[%emt 00:00:06]} 54. hxg4 {[%clk 00:01:51]} {[%emt 00:00:02]} hxg4 {[%clk
00:07:54]} {[%emt 00:00:01]} 55. Ra1 {[%clk 00:01:59]} {[%emt 00:00:02]} Kc7
{[%clk 00:07:59]} {[%emt 00:00:05]} 56. Ke3 {[%clk 00:02:03]} {[%emt 00:00:06]}
Nd3 {[%clk 00:08:01]} {[%emt 00:00:08]} 57. Kxe4 {[%clk 00:02:12]} {[%emt
00:00:02]} Nc5+ {[%clk 00:08:07]} {[%emt 00:00:03]} 58. Kd5 {[%clk 00:02:21]}
{[%emt 00:00:02]} Kb6 {[%clk 00:08:12]} {[%emt 00:00:05]} 59. Rh1 {[%clk
00:02:01]} {[%emt 00:00:29]} Nd3 {[%clk 00:08:16]} {[%emt 00:00:06]} 60. Kd4
{[%clk 00:02:07]} {[%emt 00:00:04]} Nf2 {[%clk 00:08:08]} {[%emt 00:00:18]} 61.
Rh5 {[%clk 00:02:10]} {[%emt 00:00:06]} Nh3 {[%clk 00:08:11]} {[%emt 00:00:08]}
62. Kc4 {[%clk 00:02:11]} {[%emt 00:00:09]} Ng1 {[%clk 00:08:15]} {[%emt
00:00:06]} 63. Rh6+ {[%clk 00:02:20]} {[%emt 00:00:02]} Kb7 {[%clk 00:08:24]}
64. Rf6 {[%clk 00:02:27]} {[%emt 00:00:04]} Ne2 {[%clk 00:08:33]} {[%emt
00:00:01]} 65. Kc5 {[%clk 00:02:33]} {[%emt 00:00:04]} Nxg3 {[%clk 00:08:40]}
{[%emt 00:00:03]} 66. Rf7+ {[%clk 00:02:43]} {[%emt 00:00:01]} Kb8 {[%clk
00:08:46]} {[%emt 00:00:05]} 67. Kc6 {[%clk 00:02:50]} {[%emt 00:00:02]} Ne2
{[%clk 00:08:40]} {[%emt 00:00:15]} 68. b6 {[%clk 00:02:55]} {[%emt 00:00:05]}
Nd4+ {[%clk 00:08:49]} 69. Kd5 {[%clk 00:03:04]} g3 {[%clk 00:08:49]} {[%emt
00:00:10]} 70. Kxd4 {[%clk 00:03:06]} {[%emt 00:00:08]} g2 {[%clk 00:08:58]} 71.
Kd5 {[%clk 00:03:09]} {[%emt 00:00:07]} g1=Q {[%clk 00:09:05]} {[%emt
00:00:05]} 0-1

[Event "Vastgota Open 2022"]
[Site "Skara stadshotell, Jarnvagsgatan 5, Skara, Sweden"]
[Date "2022.10.29"]
[Round "2.8"]
[White "Gustavsson, Ingemar"]
[Black "Eklund, Lars-Goran"]
[Result "0-1"]
[TimeControl "30 minutes + 10 seconds per move from move one."]
[BlackTitle "FM"]
[WhiteFideId "1723340"]
[BlackFideId "1701010"]
[WhiteElo "1903"]
[BlackElo "2176"]

1. e4 {[%clk 00:30:18]} {[%emt 00:00:02]} Nc6 {[%clk 00:29:58]} {[%emt
00:00:23]} 2. Nc3 {[%clk 00:29:57]} {[%emt 00:02:54]} Nf6 {[%clk 00:30:05]} 3.
d4 {[%clk 00:29:51]} d6 {[%clk 00:30:11]} 4. Nf3 {[%clk 00:29:33]} Bg4 {[%clk
00:30:18]} 5. Be2 {[%clk 00:29:40]} e5 {[%clk 00:30:24]} 6. d5 {[%clk
00:29:33]} Nb8 {[%clk 00:30:31]} 7. h3 {[%clk 00:29:32]} Bh5 {[%clk 00:30:39]}
8. Be3 {[%clk 00:27:30]} {[%emt 00:01:22]} c6 {[%clk 00:30:36]} {[%emt
00:00:13]} 9. Nd2 {[%clk 00:26:05]} {[%emt 00:01:35]} Bg6 {[%clk 00:30:00]}
{[%emt 00:00:46]} 10. h4 {[%clk 00:26:03]} {[%emt 00:00:12]} h5 {[%clk
00:27:02]} {[%emt 00:03:08]} 11. Bg5 {[%clk 00:26:11]} {[%emt 00:00:02]} Nbd7
{[%clk 00:26:35]} {[%emt 00:00:37]} 12. g4 {[%clk 00:25:58]} {[%emt 00:00:22]}
hxg4 {[%clk 00:26:22]} {[%emt 00:00:24]} 13. Bxg4 {[%clk 00:25:51]} {[%emt
00:00:16]} Be7 {[%clk 00:25:10]} {[%emt 00:01:22]} 14. Bf3 {[%clk 00:21:08]}
{[%emt 00:04:54]} cxd5 {[%clk 00:15:33]} {[%emt 00:09:47]} 15. exd5 {[%clk
00:16:54]} {[%emt 00:04:24]} Rc8 {[%clk 00:13:56]} {[%emt 00:01:46]} 16. h5
{[%clk 00:14:46]} {[%emt 00:02:18]} Bf5 {[%clk 00:13:28]} {[%emt 00:00:38]} 17.
Bxf6 {[%clk 00:11:38]} {[%emt 00:03:20]} Nxf6 {[%clk 00:11:52]} {[%emt
00:01:45]} 18. Qe2 {[%clk 00:11:32]} {[%emt 00:00:16]} Qa5 {[%clk 00:08:53]}
{[%emt 00:03:09]} 19. Nb3 {[%clk 00:09:38]} {[%emt 00:02:04]} Qc7 {[%clk
00:07:50]} {[%emt 00:01:13]} 20. O-O-O {[%clk 00:08:40]} {[%emt 00:01:07]} a6
{[%clk 00:07:30]} {[%emt 00:00:30]} 21. Kb1 {[%clk 00:08:40]} {[%emt 00:00:11]}
b5 {[%clk 00:07:17]} {[%emt 00:00:23]} 22. Rc1 {[%clk 00:07:40]} {[%emt
00:01:09]} Qb6 {[%clk 00:04:43]} {[%emt 00:02:44]} 23. Nd1 {[%clk 00:07:41]}
{[%emt 00:00:09]} a5 {[%clk 00:03:58]} {[%emt 00:00:55]} 24. Ne3 {[%emt
00:01:33]} Bd7 {[%clk 00:04:04]} {[%emt 00:00:02]} 25. Rhg1 {[%clk 00:06:15]}
{[%emt 00:00:14]} Kf8 {[%clk 00:03:19]} {[%emt 00:00:55]} 26. Rg3 {[%emt
00:01:08]} e4 {[%clk 00:01:19]} {[%emt 00:02:08]} 27. Bh1 {[%clk 00:05:26]}
{[%emt 00:00:02]} a4 {[%clk 00:01:22]} {[%emt 00:00:08]} 28. Nd2 {[%clk
00:05:26]} {[%emt 00:00:09]} Qd4 {[%clk 00:01:14]} {[%emt 00:00:19]} 29. Rcg1
{[%clk 00:04:17]} {[%emt 00:01:20]} a3 {[%clk 00:01:20]} {[%emt 00:00:04]} 30.
c3 {[%clk 00:04:15]} {[%emt 00:00:11]} Qd3+ {[%clk 00:00:40]} {[%emt 00:00:50]}
31. Qxd3 {[%clk 00:04:22]} {[%emt 00:00:03]} exd3 {[%clk 00:00:49]} {[%emt
00:00:01]} 32. Rxg7 {[%clk 00:04:25]} {[%emt 00:00:07]} axb2 {[%clk 00:00:53]}
{[%emt 00:00:06]} 33. Kxb2 {[%clk 00:04:33]} {[%emt 00:00:02]} Nxh5 {[%clk
00:00:54]} {[%emt 00:00:09]} 34. R7g2 {[%clk 00:03:31]} {[%emt 00:01:12]} Nf4
{[%clk 00:01:03]} {[%emt 00:00:01]} 35. Ne4 {[%clk 00:02:03]} {[%emt 00:01:38]}
Nxg2 {[%clk 00:00:58]} {[%emt 00:00:15]} 36. Bxg2 {[%clk 00:02:10]} {[%emt
00:00:03]} f5 {[%clk 00:00:57]} {[%emt 00:00:11]} 37. Nd2 {[%clk 00:01:54]}
{[%emt 00:00:25]} Bf6 {[%clk 00:00:42]} {[%emt 00:00:25]} 38. Nd1 {[%clk
00:01:08]} {[%emt 00:00:56]} b4 {[%clk 00:00:41]} {[%emt 00:00:12]} 39. Nb1
{[%clk 00:01:06]} {[%emt 00:00:11]} Rg8 {[%clk 00:00:25]} {[%emt 00:00:26]} 40.
f4 {[%clk 00:01:14]} {[%emt 00:00:03]} Re8 {[%clk 00:00:25]} {[%emt 00:00:09]}
41. Kb3 {[%clk 00:01:15]} {[%emt 00:00:08]} Re2 {[%clk 00:00:32]} {[%emt
00:00:05]} 42. Bf3 {[%clk 00:01:12]} {[%emt 00:00:12]} Rxg1 {[%clk 00:00:40]}
{[%emt 00:00:03]} 43. Bxe2 {[%clk 00:01:17]} {[%emt 00:00:05]} dxe2 {[%clk
00:00:49]} 0-1

[Event "Vastgota Open 2022"]
[Site "Skara stadshotell, Jarnvagsgatan 5, Skara, Sweden"]
[Date "2022.10.29"]
[Round "2.9"]
[White "Johnson, Daniel"]
[Black "Magnussen, Pal"]
[Result "1-0"]
[TimeControl "30 minutes + 10 seconds per move from move one."]
[WhiteFideId "1721283"]
[BlackFideId "1711814"]
[WhiteElo "2155"]
[BlackElo "1861"]

1. d4 {[%clk 00:29:27]} {[%emt 00:03:16]} c5 {[%clk 00:30:13]} 2. d5 {[%clk
00:29:35]} Nf6 {[%clk 00:30:12]} 3. c4 {[%clk 00:29:34]} b5 {[%clk 00:30:17]} 4.
cxb5 {[%clk 00:29:42]} a6 {[%clk 00:30:23]} 5. e3 {[%clk 00:29:50]} d6 {[%clk
00:30:17]} 6. Nc3 {[%clk 00:29:56]} g6 {[%clk 00:30:05]} 7. Nf3 {[%clk
00:29:13]} Bg7 {[%clk 00:29:08]} {[%emt 00:01:03]} 8. a4 {[%clk 00:29:16]}
{[%emt 00:00:06]} O-O {[%clk 00:28:59]} {[%emt 00:00:19]} 9. e4 {[%clk
00:27:45]} {[%emt 00:01:41]} axb5 {[%clk 00:28:31]} {[%emt 00:00:39]} 10. Bxb5
{[%clk 00:27:51]} {[%emt 00:00:03]} Ba6 {[%clk 00:28:30]} {[%emt 00:00:11]} 11.
Be2 {[%clk 00:27:58]} {[%emt 00:00:03]} Bxe2 {[%clk 00:27:40]} {[%emt
00:01:01]} 12. Qxe2 {[%clk 00:28:05]} {[%emt 00:00:02]} Nbd7 {[%clk 00:27:37]}
{[%emt 00:00:14]} 13. O-O {[%clk 00:27:57]} {[%emt 00:00:17]} Ng4 {[%clk
00:25:50]} {[%emt 00:01:56]} 14. Nd2 {[%clk 00:27:15]} {[%emt 00:00:52]} h5
{[%clk 00:24:44]} {[%emt 00:01:17]} 15. h3 {[%clk 00:26:59]} {[%emt 00:00:26]}
Ngf6 {[%clk 00:24:41]} {[%emt 00:00:13]} 16. f4 {[%clk 00:26:30]} {[%emt
00:00:39]} Qb6 {[%clk 00:23:35]} {[%emt 00:01:17]} 17. Nc4 {[%clk 00:24:58]}
{[%emt 00:01:42]} Qa6 {[%clk 00:21:40]} {[%emt 00:02:05]} 18. e5 {[%clk
00:22:51]} {[%emt 00:02:16]} Ne8 {[%clk 00:20:21]} {[%emt 00:01:30]} 19. e6
{[%clk 00:21:13]} {[%emt 00:01:49]} Nb6 {[%clk 00:19:38]} {[%emt 00:00:55]} 20.
Nxb6 {[%clk 00:20:36]} {[%emt 00:00:45]} Qxb6 {[%clk 00:19:41]} {[%emt
00:00:07]} 21. f5 {[%clk 00:20:14]} {[%emt 00:00:33]} Bd4+ {[%clk 00:18:22]}
{[%emt 00:01:29]} 22. Kh1 {[%clk 00:20:10]} {[%emt 00:00:13]} Nf6 {[%clk
00:16:28]} {[%emt 00:02:04]} 23. Bh6 {[%clk 00:17:00]} {[%emt 00:03:20]} Qb7
{[%clk 00:15:20]} {[%emt 00:01:18]} 24. exf7+ {[%clk 00:13:28]} {[%emt
00:03:42]} Kh7 {[%clk 00:14:25]} {[%emt 00:01:06]} 25. Bxf8 {[%clk 00:13:18]}
{[%emt 00:00:19]} Rxf8 {[%clk 00:14:30]} {[%emt 00:00:05]} 26. fxg6+ {[%clk
00:10:59]} {[%emt 00:02:29]} Kxg6 {[%clk 00:14:14]} {[%emt 00:00:26]} 27. a5
{[%clk 00:10:17]} {[%emt 00:00:52]} Bxc3 {[%clk 00:13:08]} {[%emt 00:01:16]} 28.
Qd3+ {[%clk 00:10:07]} {[%emt 00:00:21]} Kxf7 {[%clk 00:13:00]} {[%emt
00:00:17]} 29. bxc3 {[%clk 00:10:07]} {[%emt 00:00:10]} Qb2 {[%clk 00:11:24]}
{[%emt 00:01:46]} 30. Rab1 {[%clk 00:09:40]} {[%emt 00:00:37]} Qa2 {[%clk
00:11:12]} {[%emt 00:00:22]} 31. Qh7+ {[%clk 00:09:33]} {[%emt 00:00:17]} 1-0

[Event "Vastgota Open 2022"]
[Site "Skara stadshotell, Jarnvagsgatan 5, Skara, Sweden"]
[Date "2022.10.29"]
[Round "2.10"]
[White "Koski, Viljo"]
[Black "Lind, Jan-Olov"]
[Result "1/2-1/2"]
[TimeControl "30 minutes + 10 seconds per move from move one."]
[WhiteFideId "1717553"]
[BlackFideId "1701193"]
[WhiteElo "1870"]
[BlackElo "2123"]

1. d4 {[%clk 00:30:10]} {[%emt 00:00:09]} g6 {[%clk 00:30:00]} {[%emt
00:00:21]} 2. c4 {[%clk 00:30:13]} {[%emt 00:00:07]} Bg7 {[%clk 00:30:02]}
{[%emt 00:02:41]} 3. Nf3 {[%clk 00:30:14]} Nf6 {[%clk 00:30:09]} 4. Nc3 {[%clk
00:30:19]} O-O {[%clk 00:30:15]} 5. h3 {[%clk 00:29:41]} d6 {[%clk 00:30:14]} 6.
Bf4 {[%clk 00:29:36]} Nbd7 {[%clk 00:29:12]} {[%emt 00:00:14]} 7. e3 {[%clk
00:29:10]} {[%emt 00:00:35]} b6 {[%clk 00:29:14]} {[%emt 00:00:09]} 8. Be2
{[%clk 00:29:15]} {[%emt 00:00:05]} Bb7 {[%clk 00:29:22]} {[%emt 00:00:03]} 9.
O-O {[%clk 00:29:01]} {[%emt 00:00:23]} Re8 {[%clk 00:29:24]} {[%emt 00:00:08]}
10. Bh2 {[%clk 00:27:28]} {[%emt 00:01:43]} e5 {[%clk 00:29:10]} {[%emt
00:00:24]} 11. dxe5 {[%clk 00:26:49]} {[%emt 00:00:49]} dxe5 {[%clk 00:29:15]}
{[%emt 00:00:05]} 12. Qd2 {[%clk 00:26:27]} {[%emt 00:00:32]} e4 {[%clk
00:24:25]} {[%emt 00:05:00]} 13. Nd4 {[%clk 00:24:16]} {[%emt 00:02:21]} Ne5
{[%clk 00:23:50]} {[%emt 00:00:45]} 14. Rad1 {[%clk 00:20:53]} {[%emt
00:03:33]} Qe7 {[%clk 00:18:21]} {[%emt 00:05:38]} 15. Qc2 {[%clk 00:19:20]}
{[%emt 00:01:44]} h5 {[%clk 00:12:14]} 16. Bf4 {[%clk 00:17:55]} {[%emt
00:07:51]} Qc5 {[%emt 00:14:03]} 17. Ncb5 {[%clk 00:11:23]} a6 {[%clk
00:04:39]} {[%emt 00:00:35]} 18. Nb3 {[%clk 00:10:34]} {[%emt 00:00:59]} Qe7
{[%clk 00:04:37]} {[%emt 00:00:12]} 19. Nc3 {[%clk 00:09:43]} {[%emt 00:01:01]}
Rad8 {[%clk 00:04:43]} 20. Rxd8 {[%clk 00:09:09]} {[%emt 00:00:47]} Rxd8 {[%emt
00:00:06]} 21. Rd1 {[%clk 00:09:17]} Rxd1+ {[%clk 00:04:45]} {[%emt 00:00:13]}
22. Qxd1 {[%clk 00:09:16]} {[%emt 00:00:11]} 1/2-1/2

[Event "Vastgota Open 2022"]
[Site "Skara stadshotell, Jarnvagsgatan 5, Skara, Sweden"]
[Date "2022.10.29"]
[Round "3.1"]
[White "Nilsson, Patrik"]
[Black "Blomqvist, Erik"]
[Result "0-1"]
[TimeControl "30 minutes + 10 seconds per move from move one."]
[BlackTitle "GM"]
[WhiteFideId "1708171"]
[BlackFideId "1709437"]
[WhiteElo "2085"]
[BlackElo "2490"]

1. d4 {[%clk 00:30:16]} {[%emt 00:00:03]} Nf6 {[%clk 00:30:18]} {[%emt
00:00:02]} 2. Bf4 {[%clk 00:30:23]} {[%emt 00:00:03]} d5 {[%clk 00:30:24]}
{[%emt 00:00:04]} 3. e3 {[%clk 00:30:30]} {[%emt 00:00:03]} c5 {[%clk
00:30:32]} {[%emt 00:00:02]} 4. c3 {[%clk 00:30:37]} {[%emt 00:00:03]} Nc6
{[%clk 00:30:34]} {[%emt 00:00:08]} 5. Nd2 {[%clk 00:30:44]} {[%emt 00:00:03]}
Bf5 {[%clk 00:30:30]} {[%emt 00:00:14]} 6. Ngf3 {[%clk 00:30:42]} {[%emt
00:00:11]} e6 {[%clk 00:30:34]} {[%emt 00:00:07]} 7. Qb3 {[%clk 00:30:45]}
{[%emt 00:00:06]} Qc8 {[%clk 00:30:39]} {[%emt 00:00:06]} 8. c4 {[%clk
00:30:38]} {[%emt 00:00:18]} cxd4 {[%clk 00:30:42]} {[%emt 00:00:07]} 9. Nxd4
{[%clk 00:30:28]} {[%emt 00:00:18]} Nxd4 {[%clk 00:30:30]} {[%emt 00:00:23]} 10.
exd4 {[%clk 00:30:15]} {[%emt 00:00:22]} dxc4 {[%clk 00:30:01]} {[%emt
00:00:40]} 11. Nxc4 {[%clk 00:29:34]} {[%emt 00:00:51]} Nd5 {[%clk 00:29:30]}
{[%emt 00:00:41]} 12. Bd2 {[%clk 00:23:39]} {[%emt 00:06:06]} Be7 {[%clk
00:26:11]} {[%emt 00:03:29]} 13. Ne5 {[%clk 00:22:50]} {[%emt 00:00:58]} O-O
{[%clk 00:25:38]} {[%emt 00:00:44]} 14. Rc1 {[%clk 00:22:31]} {[%emt 00:00:29]}
Qd8 {[%clk 00:25:35]} {[%emt 00:00:13]} 15. Be2 {[%clk 00:21:43]} {[%emt
00:00:57]} Bg5 {[%clk 00:24:19]} {[%emt 00:01:26]} 16. Bxg5 {[%clk 00:20:13]}
{[%emt 00:01:41]} Qxg5 {[%clk 00:24:26]} {[%emt 00:00:02]} 17. O-O {[%clk
00:19:36]} {[%emt 00:00:47]} Nf4 {[%clk 00:24:16]} {[%emt 00:00:20]} 18. Bf3
{[%clk 00:19:27]} {[%emt 00:00:19]} Bh3 {[%clk 00:22:15]} {[%emt 00:02:11]} 19.
Qxb7 {[%clk 00:17:12]} Rab8 {[%clk 00:21:46]} {[%emt 00:03:05]} 20. Qe4 {[%clk
00:17:19]} {[%emt 00:00:02]} Rxb2 {[%clk 00:17:59]} {[%emt 00:03:58]} 21. Kh1
{[%clk 00:15:12]} {[%emt 00:02:16]} f5 {[%clk 00:16:00]} {[%emt 00:02:09]} 22.
Qc6 {[%clk 00:14:32]} {[%emt 00:00:50]} Rb6 {[%clk 00:16:06]} {[%emt 00:00:05]}
23. gxh3 {[%clk 00:12:38]} {[%emt 00:02:04]} Rxc6 {[%clk 00:16:14]} {[%emt
00:00:02]} 24. Rxc6 {[%clk 00:12:03]} {[%emt 00:00:46]} Nxh3 {[%clk 00:15:43]}
{[%emt 00:00:39]} 25. Rxe6 {[%clk 00:11:32]} {[%emt 00:00:42]} Rb8 {[%clk
00:14:40]} {[%emt 00:01:12]} 26. Rc6 {[%clk 00:10:26]} {[%emt 00:01:17]} Nxf2+
{[%clk 00:14:31]} {[%emt 00:00:18]} 0-1